bitfinex/quotes_SOLUSD_20250802
["timestamp","ask_amount","ask_price","bid_price","bid_amount"]
[1754143016432,0.66,165.15,165.12,10.29602994]
[1754143016746,0.66,165.15,165.13,4.49877841]
[1754143016949,0.66,165.15,165.12,10.29602994]
[1754143017114,0.66,165.15,165.13,4.49882029]
[1754143017314,0.66,165.15,165.12,10.29602994]
[1754143017638,0.66,165.14,165.12,10.29602994]
[1754143019550,0.69,165.16,165.12,10.29602994]
[1754143019771,26.0,165.15,165.14,10.29602994]
[1754143019937,26.0,165.15,165.14,17.04325588]
[1754143020525,26.66,165.15,165.14,4.4984057]
[1754143020831,26.66,165.15,165.12,10.29602994]
[1754143021152,0.65,165.14,165.13,4.49892943]
[1754143023159,26.0,165.15,165.13,6.75009738]
[1754143023457,26.0,165.15,165.14,6.75009738]
[1754143023654,26.0,165.15,165.14,6.7527793]
[1754143023971,26.65,165.15,165.14,6.7527793]
[1754143024822,26.65,165.15,165.14,4.50161135]
[1754143025242,26.65,165.15,165.14,6.75484939]
[1754143033176,32.82520491,165.15,165.14,6.75484939]
[1754143033473,32.82520491,165.15,165.1,6.17520491]
[1754143033675,32.17520491,165.15,165.11,6.76430413]
[1754143033844,32.17520491,165.15,165.12,6.76430413]
[1754143033845,0.65,165.14,165.12,6.76430413]
[1754143034046,32.17520491,165.15,165.13,4.50951418]
[1754143034248,26.0,165.15,165.1,6.17520491]
[1754143034448,32.17520491,165.15,165.11,6.76439275]
[1754143034754,0.65,165.14,165.12,6.76439275]
[1754143035079,32.17520491,165.15,165.13,6.76439275]
[1754143035275,32.17520491,165.15,165.09,0.06]
[1754143035465,32.17520491,165.15,165.1,12.94301447]
[1754143035671,0.65,165.14,165.11,6.76780956]
[1754143035974,0.65,165.13,165.12,6.76780956]
[1754143038278,0.65,165.13,165.12,6.76752122]
[1754143039393,26.0,165.14,165.12,12.94272613]
[1754143039560,26.0,165.14,165.13,6.76752122]
[1754143039754,26.0,165.15,165.13,6.76752122]
[1754143040083,26.0,165.15,165.14,6.76752122]
[1754143040380,26.65,165.15,165.14,6.76752122]
[1754143041274,26.0,165.15,165.14,12.94272613]
[1754143041583,26.68,165.15,165.14,6.76752122]
[1754143044789,26.03,165.15,165.14,6.76752122]
[1754143044996,26.03,165.15,165.14,12.94272613]
[1754143045164,0.03,165.15,165.14,12.94272613]
[1754143048278,0.68,165.15,165.14,6.76752122]
[1754143049781,0.68,165.15,165.14,6.76750202]
[1754143050294,26.68,165.15,165.14,6.76750202]
[1754143050464,26.68,165.15,165.14,2.25594139]
[1754143051395,26.68,165.15,165.14,6.76913631]
[1754143055579,26.68,165.15,165.14,6.76877215]
[1754143057585,26.03,165.15,165.14,12.94397706]
[1754143059235,0.03,165.15,165.14,12.94397706]
[1754143062888,0.03,165.15,165.14,12.92761976]
[1754143063506,0.03,165.15,165.14,25.85523976]
[1754143067418,0.03,165.15,165.14,25.85229998]
[1754143070591,0.74,165.15,165.14,19.67709507]
[1754143070817,0.03,165.15,165.14,25.85229998]
[1754143071142,0.74,165.15,165.14,15.17842495]
[1754143071500,0.74,165.15,165.12,6.17520491]
[1754143071731,0.74,165.15,165.13,2.25009917]
[1754143071931,0.74,165.15,165.13,6.175204]
[1754143072732,0.71,165.14,165.13,6.175204]
[1754143072905,0.71,165.14,165.13,14.60052384]
[1754143073504,0.71,165.14,165.13,8.42531893]
[1754143074612,6.88520491,165.14,165.13,8.42531893]
[1754143074930,6.88520491,165.14,165.09,0.06]
[1754143075127,6.88520491,165.13,165.1,2.25245831]
[1754143075426,0.71,165.12,165.09,14.66052391]
[1754143075620,0.71,165.12,165.09,8.485319]
[1754143075800,0.71,165.12,165.1,2.25237766]
[1754143076201,0.71,165.12,165.09,14.66052391]
[1754143078420,0.71,165.11,165.09,14.66052391]
[1754143078635,6.17520491,165.14,165.1,6.17520491]
[1754143079141,6.17520491,165.14,165.09,14.66052391]
[1754143079348,0.71,165.13,165.1,2.25135526]
[1754143079715,0.71,165.13,165.1,8.42656017]
[1754143080036,0.71,165.13,165.1,6.17520491]
[1754143080222,0.71,165.12,165.1,6.17520491]
[1754143081045,0.66,165.14,165.11,6.17520491]
[1754143081220,0.03,165.15,165.12,2.25042292]
[1754143081410,0.66,165.13,165.11,14.66052391]
[1754143081729,0.69,165.15,165.12,8.42565602]
[1754143081907,0.69,165.15,165.12,6.17520491]
[1754143081908,0.03,165.15,165.12,6.17520491]
[1754143082241,0.66,165.14,165.12,6.17520491]
[1754143082840,0.66,165.14,165.13,6.17520491]
[1754143083039,0.66,165.14,165.13,2.25038759]
[1754143083218,0.66,165.14,165.09,0.06]
[1754143083544,0.66,165.14,165.12,20.83572891]
[1754143085144,0.66,165.13,165.09,0.06]
[1754143085453,0.66,165.13,165.11,6.17520491]
[1754143085662,0.66,165.13,165.11,18.213277]
[1754143085832,0.66,165.13,165.09,6.23520491]
[1754143086165,0.66,165.13,165.1,8.42597998]
[1754143086465,0.66,165.13,165.1,12.35040991]
[1754143087464,0.66,165.13,165.1,6.175205]
[1754143087622,0.66,165.13,165.09,6.23520491]
[1754143087946,0.66,165.13,165.1,8.42535541]
[1754143088154,0.66,165.13,165.1,6.17520491]
[1754143088661,0.66,165.13,165.09,12.41041]
[1754143088960,0.66,165.13,165.09,18.58561491]
[1754143089163,6.17520491,165.1,165.09,0.06]
[1754143089453,6.83520491,165.1,165.07,0.06]
[1754143089635,0.66,165.09,165.07,0.06]
[1754143089834,6.17520491,165.08,165.07,0.06]
[1754143090358,32.83520491,165.08,165.07,0.06]
[1754143091356,26.66,165.08,165.07,0.06]
[1754143092520,32.83520491,165.08,165.07,0.06]
[1754143093172,49.61988888,165.08,165.07,0.06]
[1754143093353,23.61988888,165.08,165.07,0.06]
[1754143094558,49.61988888,165.08,165.07,0.06]
[1754143094757,23.61988888,165.08,165.07,0.06]
[1754143095853,26.05024388,165.08,165.07,0.06]
[1754143096250,26.05024388,165.08,165.04,0.06]
[1754143096251,26.0,165.05,165.04,0.06]
[1754143096455,55.13509379,165.05,165.04,0.06]
[1754143096663,55.79509379,165.05,165.04,0.06]
[1754143097043,61.85386385,165.05,165.04,0.06]
[1754143097252,16.78468397,165.04,165.02,0.06]
[1754143097478,22.95988888,165.03,165.02,0.06]
[1754143097850,23.61988888,165.03,165.02,0.06]
[1754143100353,23.61988888,165.03,164.94,0.06]
[1754143100354,26.0,165.0,164.94,0.06]
[1754143100558,6.17520491,164.98,164.94,6.23520491]
[1754143100778,6.83520491,164.98,164.94,6.23520491]
[1754143100958,0.66,164.98,164.94,6.23520491]
[1754143101574,6.17520491,164.99,164.94,6.23520491]
[1754143101767,6.83520491,164.99,164.94,6.35520491]
[1754143102161,0.66,164.98,164.94,6.23520491]
[1754143103474,6.17520491,164.99,164.94,6.23520491]
[1754143103688,6.17520491,164.99,164.94,6.35520491]
[1754143103985,6.83520491,164.99,164.94,6.35520491]
[1754143105085,6.17520491,164.97,164.94,0.06]
[1754143105382,6.17520491,164.95,164.94,0.06]
[1754143105567,6.83520491,164.95,164.94,0.06]
[1754143107985,6.17520491,164.95,164.94,0.06]
[1754143108187,26.0,164.95,164.94,0.06]
[1754143109300,6.83520491,164.98,164.94,0.06]
[1754143109464,32.17520491,164.98,164.94,0.18]
[1754143110093,32.83520491,164.98,164.94,0.06]
[1754143110264,26.66,164.98,164.94,6.23520491]
[1754143110892,26.66,164.98,164.94,6.35520491]
[1754143111065,26.0,164.98,164.94,6.35520491]
[1754143111387,26.0,164.96,164.95,6.17520491]
[1754143111697,26.0,164.96,164.94,0.18]
[1754143111698,26.71,164.96,164.94,0.06]
[1754143111865,32.17520491,164.96,164.94,0.06]
[1754143112062,0.71,164.95,164.94,1962.6734]
[1754143112994,26.0,164.96,164.94,1962.6734]
[1754143113204,26.71,164.95,164.94,1962.6734]
[1754143113414,23.66988888,164.95,164.94,1961.9534]
[1754143113897,17.49468397,164.95,164.94,1961.9534]
[1754143114083,23.66988888,164.95,164.94,1961.9534]
[1754143118198,17.49468397,164.95,164.94,1961.9534]
[1754143118411,23.66988888,164.95,164.94,1961.9534]
[1754143118911,16.78468397,164.95,164.94,1961.9534]
[1754143119814,0.71,164.95,164.94,1961.9534]
[1754143120115,26.0,164.95,164.94,1961.9534]
[1754143122293,48.95988888,164.95,164.94,1961.9534]
[1754143122499,49.66988888,164.95,164.94,1961.9534]
[1754143125489,42.78468397,164.95,164.94,1961.9534]
[1754143125706,48.95988888,164.95,164.94,1961.9534]
[1754143125986,6.17520491,164.97,164.94,1961.9534]
[1754143126226,26.0,164.95,164.94,1961.9534]
[1754143126395,26.0,164.95,164.94,1962.6234]
[1754143127121,6.17520491,164.98,164.94,1962.6234]
[1754143127122,16.78468397,164.98,164.94,1968.79860491]
[1754143127308,6.17520491,164.98,164.94,1968.79860491]
[1754143127726,26.0,164.95,164.94,1968.79860491]
[1754143128491,3.16497467,165.0,164.94,1968.79860491]
[1754143128694,3.16497467,165.0,164.98,6.17520491]
[1754143128923,3.16497467,165.0,164.99,6.84520491]
[1754143129143,16.78468397,165.02,164.99,6.84520491]
[1754143129425,26.0,165.0,164.99,6.84520491]
[1754143130130,26.0,165.0,164.99,6.17520491]
[1754143130734,26.0,164.99,164.98,6.17520491]
[1754143130955,26.0,164.99,164.98,6.84520491]
[1754143132345,26.0,165.02,164.98,6.84520491]
[1754143132548,26.0,165.02,165.0,6.17520491]
[1754143132713,26.0,165.02,165.01,6.84520491]
[1754143133249,26.0,165.02,165.01,6.17520491]
[1754143133942,26.0,165.02,165.0,6.17520491]
[1754143134238,26.0,165.02,165.01,6.17520491]
[1754143136122,26.0,165.02,165.0,6.84520491]
[1754143136711,26.0,165.02,165.0,6.17520491]
[1754143137109,26.0,165.02,164.96,0.67]
[1754143137110,26.0,165.0,164.96,0.67]
[1754143137309,0.71,165.01,164.96,0.67]
[1754143137508,0.71,165.01,164.94,1962.0134]
[1754143137509,26.0,164.99,164.97,6.17520491]
[1754143137744,32.17520491,165.01,164.97,6.17520491]
[1754143137949,26.0,164.98,164.94,1962.6834]
[1754143138112,26.0,164.98,164.94,1968.85860491]
[1754143138306,26.0,164.98,164.95,2.2522897]
[1754143138544,26.0,164.95,164.94,1962.0134]
[1754143138735,32.88520491,164.95,164.94,1964.26787762]
[1754143138922,49.66988888,164.95,164.94,1962.0134]
[1754143140135,55.73233204,164.95,164.94,1962.0134]
[1754143140839,49.66988888,164.95,164.94,1962.0134]
[1754143141046,55.73233204,164.95,164.94,1962.0134]
[1754143141729,49.66988888,164.95,164.94,1962.0134]
[1754143142554,55.73233204,164.95,164.94,1962.0134]
[1754143142715,65.73233204,164.95,164.94,1836.06065301]
[1754143142913,71.90753695,164.95,164.94,1731.52964037]
[1754143143152,75.99216125,164.95,164.94,1627.76288283]
[1754143143328,94.21216125,164.95,164.94,1627.76288283]
[1754143143533,94.21216125,164.95,164.94,1503.77148013]
[1754143143732,94.21216125,164.95,164.94,1461.25533847]
[1754143143733,69.81695634,164.95,164.94,1461.25533847]
[1754143144049,69.81695634,164.95,164.94,1450.37575065]
[1754143144225,65.73233204,164.95,164.94,1450.37575065]
[1754143144620,55.73233204,164.95,164.94,1450.37575065]
[1754143146481,49.66988888,164.95,164.94,1450.37575065]
[1754143146633,22.95988888,164.95,164.94,1450.37575065]
[1754143147228,22.45988888,164.95,164.94,1450.37575065]
[1754143148645,48.45988888,164.95,164.94,1450.37575065]
[1754143148852,16.28468397,164.95,164.94,1451.04575065]
[1754143149652,25.14921217,164.95,164.94,1451.04575065]
[1754143149850,8.8645282,164.95,164.94,1457.22095556]
[1754143150062,8.8645282,164.95,164.94,1451.04575065]
[1754143151538,34.8645282,164.95,164.94,1451.04575065]
[1754143153364,8.8645282,164.95,164.94,1451.04575065]
[1754143153739,31.82441708,164.95,164.94,1450.37575065]
[1754143154954,31.85441708,164.95,164.94,1450.37575065]
[1754143155540,15.06973311,164.95,164.94,1450.37575065]
[1754143155757,8.8945282,164.95,164.94,1451.04575065]
[1754143162360,34.8945282,164.95,164.94,1451.04575065]
[1754143162868,8.8945282,164.95,164.94,1451.04575065]
[1754143163257,34.8945282,164.95,164.94,1457.22095556]
[1754143164257,34.8945282,164.95,164.94,1451.04575065]
[1754143165173,8.8945282,164.95,164.94,1451.04575065]
[1754143165754,15.06973311,164.95,164.94,1450.37575065]
[1754143166541,8.8945282,164.95,164.94,1450.37575065]
[1754143167949,8.8945282,164.95,164.94,1451.04575065]
[1754143170357,34.8945282,164.95,164.94,1457.22095556]
[1754143170664,8.8945282,164.95,164.94,1457.22095556]
[1754143173864,8.8945282,164.95,164.94,1451.04575065]
[1754143174064,8.8945282,164.95,164.94,1450.37575065]
[1754143176276,15.06973311,164.95,164.94,1450.37575065]
[1754143176478,8.8945282,164.95,164.94,1450.37575065]
[1754143176985,15.06973311,164.95,164.94,1450.37575065]
[1754143180083,8.8945282,164.95,164.94,1450.37575065]
[1754143180662,8.8945282,164.95,164.94,1451.08575065]
[1754143181381,8.8945282,164.95,164.94,1450.37575065]
[1754143181791,8.8945282,164.95,164.94,1451.08575065]
[1754143182657,8.8945282,164.95,164.94,1450.37575065]
[1754143183284,15.06973311,164.95,164.94,1450.37575065]
[1754143183857,15.68973311,164.95,164.94,1450.37575065]
[1754143184100,32.47441708,164.95,164.94,1450.37575065]
[1754143184409,41.70296782,164.95,164.94,1450.37575065]
[1754143184605,35.64052466,164.95,164.94,1450.37575065]
[1754143184961,41.70296782,164.95,164.94,1450.37575065]
[1754143188168,51.70296782,164.95,164.94,1221.33270645]
[1754143188465,55.78820555,164.95,164.94,1221.33270645]
[1754143189204,55.78820555,164.95,164.94,1138.38966225]
[1754143190895,55.78820555,164.95,164.94,1055.44661805]
[1754143191205,55.78820555,164.95,164.94,1044.56703023]
[1754143191378,55.78820555,164.95,164.94,981.43390884]
[1754143191379,80.18341046,164.95,164.94,981.43390884]
[1754143191576,77.01730288,164.95,164.94,896.97585637]
[1754143191899,77.01730288,164.95,164.94,695.68949305]
[1754143192104,77.01730288,164.95,164.94,640.82327539]
[1754143192301,77.01730288,164.95,164.94,621.76079425]
[1754143192495,80.1852833,164.95,164.94,563.18650558]
[1754143192700,80.1852833,164.95,164.94,394.09534058]
[1754143192913,80.1852833,164.95,164.94,352.48059127]
[1754143193120,83.36092232,164.95,164.94,325.07148548]
[1754143193321,88.43922094,164.95,164.94,313.85249378]
[1754143193691,88.43922094,164.95,164.94,214.37993161]
[1754143193889,88.43922094,164.95,164.94,197.85041364]
[1754143194089,88.43922094,164.95,164.94,186.97082582]
[1754143194306,88.43922094,164.95,164.94,175.75183412]
[1754143194811,88.43922094,164.95,164.94,92.80878992]
[1754143195018,106.69128194,164.95,164.94,92.80878992]
[1754143195197,106.69128194,164.95,164.87,0.2]
[1754143195198,26.78468397,164.88,164.87,0.2]
[1754143195388,39.13509379,164.88,164.87,0.2]
[1754143196099,47.80227956,164.88,164.87,0.2]
[1754143196991,50.83377846,164.88,164.87,0.2]
[1754143197615,50.21377846,164.88,164.87,0.2]
[1754143199084,34.03857355,164.88,164.87,0.91]
[1754143199820,27.86336864,164.88,164.87,0.91]
[1754143200409,8.04718577,164.88,164.87,0.91]
[1754143200801,8.04718577,164.88,164.87,7.08520491]
[1754143201197,34.04718577,164.88,164.87,7.08520491]
[1754143201505,8.04718577,164.88,164.87,7.08520491]
[1754143201814,34.04718577,164.88,164.87,7.08520491]
[1754143204803,8.04718577,164.88,164.87,7.08520491]
[1754143207237,63.9707979,164.92,164.87,13.26040982]
[1754143207437,89.9707979,164.92,164.91,6.17520491]
[1754143207621,89.9707979,164.92,164.91,6.84520491]
[1754143207934,63.9707979,164.92,164.91,6.84520491]
[1754143212513,0.03,164.95,164.91,6.84520491]
[1754143212740,0.03,164.95,164.94,6.17520491]
[1754143213126,0.03,164.95,164.94,6.84520491]
[1754143226943,0.03,164.95,164.94,6.17520491]
[1754143227132,0.03,164.95,164.94,6.84520491]
[1754143227632,0.03,164.95,164.88,130.79419988]
[1754143227836,26.03,164.95,164.93,6.17520491]
[1754143229559,0.03,164.95,164.94,6.17520491]
[1754143229778,26.03,164.95,164.94,6.17520491]
[1754143233538,0.03,164.95,164.94,6.17520491]
[1754143233739,26.03,164.95,164.94,6.17520491]
[1754143234477,0.03,164.95,164.94,6.17520491]
[1754143234668,26.03,164.95,164.94,6.17520491]
[1754143235045,0.65,164.95,164.87,0.2]
[1754143235269,6.17520491,164.94,164.89,6.17520491]
[1754143235468,0.62,164.93,164.89,6.17520491]
[1754143235670,32.79520491,164.93,164.88,6.17520491]
[1754143235856,0.62,164.92,164.88,6.17520491]
[1754143236044,6.79520491,164.92,164.87,7.03520491]
[1754143236244,32.17520491,164.93,164.88,6.83520491]
[1754143236466,32.79520491,164.93,164.89,0.66]
[1754143237045,0.62,164.92,164.87,0.86]
[1754143237261,0.62,164.92,164.88,6.17520491]
[1754143237476,0.62,164.92,164.88,6.83520491]
[1754143237981,0.62,164.91,164.87,6.37520491]
[1754143238155,0.62,164.91,164.87,0.2]
[1754143238349,0.62,164.9,164.87,0.2]
[1754143238546,26.0,164.88,164.87,0.2]
[1754143239672,16.78468397,164.93,164.87,0.2]
[1754143239673,6.17520491,164.89,164.87,0.2]
[1754143239864,6.79520491,164.89,164.87,0.2]
[1754143240780,32.17520491,164.9,164.87,0.2]
[1754143241577,32.79520491,164.9,164.87,0.2]
[1754143242039,0.62,164.89,164.87,0.2]
[1754143242244,6.79520491,164.88,164.87,0.2]
[1754143242477,23.57988888,164.88,164.87,0.2]
[1754143242970,6.79520491,164.88,164.87,0.2]
[1754143243711,26.0,164.88,164.87,0.2]
[1754143243880,26.0,164.88,164.87,0.86]
[1754143244282,26.0,164.88,164.87,0.2]
[1754143245209,32.79520491,164.93,164.87,7.03520491]
[1754143245413,32.79520491,164.93,164.89,6.17520491]
[1754143245713,32.79520491,164.93,164.89,6.83520491]
[1754143246404,26.0,164.89,164.87,6.37520491]
[1754143246612,26.0,164.89,164.87,0.2]
[1754143246783,26.62,164.89,164.87,0.2]
[1754143246982,32.79520491,164.89,164.87,0.2]
[1754143248388,26.0,164.88,164.87,6.37520491]
[1754143248987,29.16690256,164.91,164.87,7.03520491]
[1754143249195,26.0,164.91,164.89,6.17520491]
[1754143249398,26.0,164.91,164.89,0.66]
[1754143249909,26.0,164.91,164.89,6.83520491]
[1754143250078,26.0,164.9,164.89,0.66]
[1754143250514,26.0,164.9,164.89,6.83520491]
[1754143250883,26.0,164.9,164.88,6.17520491]
[1754143252286,26.0,164.9,164.88,6.83520491]
[1754143252587,26.0,164.91,164.89,6.83520491]
[1754143252905,26.0,164.91,164.9,6.83520491]
[1754143253092,3.16618829,164.93,164.9,6.83520491]
[1754143253293,3.16618829,164.93,164.91,6.83520491]
[1754143253520,29.16618829,164.93,164.91,6.83520491]
[1754143254016,3.16618829,164.93,164.9,6.17520491]
[1754143254218,3.16618829,164.93,164.9,6.83520491]
[1754143254721,26.0,164.91,164.89,6.17520491]
[1754143255024,9.3413932,164.93,164.88,6.17520491]
[1754143255188,26.0,164.88,164.87,0.2]
[1754143255389,26.0,164.88,164.87,6.37520491]
[1754143255591,26.0,164.88,164.87,7.03520491]
[1754143256008,26.0,164.88,164.87,0.2]
[1754143256196,0.62,164.88,164.87,0.2]
[1754143257932,6.17520491,164.89,164.87,0.2]
[1754143258100,26.0,164.89,164.87,0.86]
[1754143258306,26.0,164.89,164.88,6.83520491]
[1754143259023,146.1,164.92,164.88,6.83520491]
[1754143259228,26.0,164.9,164.89,6.17520491]
[1754143259435,26.0,164.9,164.89,6.83520491]
[1754143263143,26.0,164.89,164.88,6.17520491]
[1754143263846,26.0,164.92,164.88,6.17520491]
[1754143264037,26.0,164.92,164.89,6.17520491]
[1754143264239,26.0,164.9,164.88,6.17520491]
[1754143264418,26.0,164.88,164.87,0.2]
[1754143265919,26.0,164.89,164.87,7.03520491]
[1754143266119,26.0,164.89,164.88,6.83520491]
[1754143267139,3.16618829,164.93,164.88,13.01040982]
[1754143267440,0.03,164.94,164.92,6.17520491]
[1754143267645,26.03,164.94,164.93,6.17520491]
[1754143268823,26.03,164.94,164.93,6.83520491]
[1754143269031,26.03,164.94,164.93,6.17520491]
[1754143269233,32.82520491,164.94,164.89,6.17520491]
[1754143269412,32.82520491,164.94,164.9,6.17520491]
[1754143269413,26.0,164.91,164.9,6.17520491]
[1754143269621,26.0,164.91,164.9,6.83520491]
[1754143270948,26.0,164.92,164.88,0.66]
[1754143271123,26.0,164.92,164.9,6.17520491]
[1754143271842,26.0,164.92,164.88,0.66]
[1754143272052,0.62,164.91,164.87,0.2]
[1754143272341,26.0,164.88,164.87,0.2]
[1754143273541,26.0,164.88,164.87,6.37520491]
[1754143275753,26.0,164.88,164.87,0.2]
[1754143276652,26.0,164.89,164.87,7.03520491]
[1754143277230,26.62,164.88,164.87,0.2]
[1754143278146,26.0,164.88,164.87,0.2]
[1754143278661,32.79520491,164.88,164.87,0.2]
[1754143280756,26.62,164.9,164.87,0.2]
[1754143280963,26.0,164.9,164.87,7.03520491]
[1754143281164,26.0,164.89,164.87,0.86]
[1754143281459,26.0,164.89,164.87,0.2]
[1754143281629,6.79520491,164.91,164.87,0.2]
[1754143281829,26.0,164.89,164.87,0.2]
[1754143282275,0.62,164.89,164.87,0.2]
[1754143283467,26.0,164.9,164.87,0.2]
[1754143283650,26.0,164.9,164.87,0.86]
[1754143284263,32.79520491,164.9,164.87,0.2]
[1754143284952,0.62,164.89,164.87,0.2]
[1754143285357,0.62,164.88,164.87,0.2]
[1754143285932,49.57988888,164.88,164.87,0.2]
[1754143287952,52.74715665,164.88,164.87,0.2]
[1754143289574,52.12715665,164.88,164.87,0.2]
[1754143289766,3.16726777,164.88,164.87,7.03520491]
[1754143289970,22.95988888,164.92,164.87,7.03520491]
[1754143290138,26.0,164.88,164.87,7.03520491]
[1754143291068,26.0,164.88,164.87,0.2]
[1754143291472,49.57988888,164.88,164.87,0.2]
[1754143294079,48.95988888,164.88,164.87,0.2]
[1754143294442,49.57988888,164.88,164.87,0.2]
[1754143297085,55.64490586,164.88,164.87,0.2]
[1754143297284,16.78468397,164.87,164.86,0.06]
[1754143297493,27.66806355,164.87,164.85,0.06]
[1754143297778,32.17520491,164.8,164.76,0.7]
[1754143298160,48.95988888,164.8,164.76,0.7]
[1754143298362,26.0,164.84,164.79,0.8]
[1754143298553,26.0,164.8,164.79,0.8]
[1754143298753,32.17520491,164.8,164.79,0.8]
[1754143299166,26.0,164.8,164.79,0.8]
[1754143299379,26.0,164.82,164.79,6.97520491]
[1754143299578,26.0,164.82,164.81,6.17520491]
[1754143299880,26.0,164.82,164.81,0.7]
[1754143300766,4.89414936,164.83,164.81,0.7]
[1754143300961,6.17520491,164.85,164.81,0.7]
[1754143301178,152.27520491,164.85,164.8,6.17520491]
[1754143301391,152.27520491,164.85,164.82,0.7]
[1754143301556,26.0,164.83,164.82,0.7]
[1754143302054,26.0,164.83,164.82,6.17520491]
[1754143302257,26.0,164.83,164.79,0.1]
[1754143302473,26.0,164.83,164.81,6.17520491]
[1754143302777,26.0,164.83,164.82,6.87520491]
[1754143303080,26.0,164.85,164.82,6.87520491]
[1754143303281,26.0,164.85,164.84,6.17520491]
[1754143303492,26.0,164.85,164.84,6.87520491]
[1754143303679,26.0,164.88,164.84,6.87520491]
[1754143303991,26.0,164.88,164.86,6.17520491]
[1754143304164,26.0,164.88,164.86,6.87520491]
[1754143304165,30.79345104,164.88,164.86,6.87520491]
[1754143304363,4.79345104,164.88,164.86,6.87520491]
[1754143304597,26.0,164.89,164.87,6.87520491]
[1754143304762,26.0,164.88,164.87,6.87520491]
[1754143305268,26.0,164.88,164.87,0.7]
[1754143306190,26.0,164.88,164.86,6.17520491]
[1754143306369,26.0,164.86,164.84,6.17520491]
[1754143306562,26.0,164.86,164.84,6.87520491]
[1754143306775,26.0,164.85,164.83,6.17520491]
[1754143307214,26.0,164.85,164.83,6.87520491]
[1754143307364,26.0,164.85,164.84,6.87520491]
[1754143307689,30.83062162,164.89,164.84,6.93520491]
[1754143307885,3.78629144,164.92,164.88,6.17520491]
[1754143307886,3.19629144,164.92,164.88,6.17520491]
[1754143308085,3.19629144,164.92,164.9,6.17520491]
[1754143308281,26.0,164.91,164.89,6.87520491]
[1754143308484,26.0,164.91,164.9,0.7]
[1754143308983,26.0,164.91,164.89,6.17520491]
[1754143309192,30.95395307,164.91,164.89,6.17520491]
[1754143309570,30.95395307,164.91,164.89,6.87520491]
[1754143309766,26.0,164.91,164.89,6.87520491]
[1754143309970,3.19629144,164.92,164.89,0.7]
[1754143310289,26.0,164.91,164.9,6.87520491]
[1754143313870,26.0,164.91,164.89,6.17520491]
[1754143314087,26.0,164.91,164.89,6.87520491]
[1754143315294,26.0,164.91,164.9,6.87520491]
[1754143315878,26.03,164.92,164.9,6.87520491]
[1754143316065,0.03,164.92,164.91,6.87520491]
[1754143316474,26.03,164.92,164.91,6.87520491]
[1754143319213,26.03,164.92,164.91,6.17520491]
[1754143319714,26.03,164.92,164.91,6.87520491]
[1754143320514,26.03,164.92,164.91,6.17520491]
[1754143320810,26.03,164.92,164.85,90.20661207]
[1754143320811,26.0,164.89,164.87,6.87520491]
[1754143321307,26.03,164.92,164.88,6.84520491]
[1754143321512,26.0,164.9,164.89,0.67]
[1754143321892,26.0,164.9,164.88,6.17520491]
[1754143322091,32.82520491,164.92,164.87,6.17520491]
[1754143322297,32.17520491,164.9,164.85,0.67]
[1754143322507,32.17520491,164.9,164.85,6.84520491]
[1754143322710,26.0,164.9,164.86,6.17520491]
[1754143322887,26.62,164.9,164.86,6.17520491]
[1754143323217,26.0,164.88,164.87,0.67]
[1754143323417,26.0,164.88,164.87,6.84520491]
[1754143323724,26.0,164.89,164.87,6.84520491]
[1754143323905,26.0,164.89,164.88,6.17520491]
[1754143324090,26.0,164.89,164.88,6.84520491]
[1754143324523,26.03,164.92,164.88,6.84520491]
[1754143324688,26.0,164.91,164.89,6.84520491]
[1754143324887,26.0,164.91,164.9,6.84520491]
[1754143326517,26.03,164.92,164.9,6.17520491]
[1754143326815,0.03,164.92,164.91,6.17520491]
[1754143326989,26.03,164.92,164.91,6.17520491]
[1754143327317,0.03,164.92,164.91,22.95988888]
[1754143328388,0.03,164.92,164.91,23.62988888]
[1754143328586,0.03,164.92,164.91,6.84520491]
[1754143330211,0.03,164.92,164.91,6.17520491]